Workbook

Sheet Contents
A1: ROUNDDOWN Function
B2: automateexcel.com/functions/rounddown-formula-excel
B4: Table of Contents | F4: Other Resources
B5: Introduction Round | F5: Excel Formulas w/Examples
B6: Whole Number | F6: Excel Boot Camp - Learn Excel inside Excel
B7: Two Decimal | F7: Excel Functions & Formulas Tutorial
B8: Round 10-100-1000
B9: Round-RoundUP-RoundDown
B10: ROUND Multiplies
B11: RoundDOWN Presentage
B12: Other ROUND Function
B13: Rounddown-FLOOR
B14: Learn Excel Inside Excel
B37: Learn Excel inside Excel with our Interactive Tutorial
B38: Automatically Graded Exercises
B39: Shortcuts & Best Practices "Work Smarter, not Harder"
B47: Course Contents

Sheet Introduction Round
B2: ROUNDDOWN | D2: =ROUNDDOWN (number, num_digits)
B3: The Excel ROUNDDOWN function returns a number rounded down to a given number of places.
B5: Number | C5: Digits | D5: Result
B6: 5154.4567 | C6: 3 | D6: =ROUNDDOWN(B6,C6) -> 5154.456
B7: 5154.4567 | C7: 2 | D7: 5154.45
B8: 5154.4567 | C8: 1 | D8: 5154.4
B9: 5154.4567 | C9: 0 | D9: 5154
B10: 5154.4567 | C10: -1 | D10: 5150
B11: 5154.4567 | C11: -2 | D11: 5100
B12: 5154.4567 | C12: -3 | D12: 5000
B14: automateexcel.com/functions/rounddown-formula-excel
B16: Excel Boot Camp - Learn Excel Inside Excel

Sheet Whole Number
A1: Number | B1: Result
A2: 154.01 | B2: =ROUNDDOWN(A2,0) -> 154
A3: 154.5 | B3: =ROUNDDOWN(A3,0) -> 154
A4: 154.99 | B4: =ROUNDDOWN(A4,0) -> 154
B6: automateexcel.com/functions/rounddown-formula-excel
B8: Excel Boot Camp - Learn Excel Inside Excel

Sheet Two Decimal
A1: Number | B1: Result
A2: 154.01234 | B2: =ROUNDDOWN(A2,2) -> 154.01
A3: 154.55555 | B3: =ROUNDDOWN(A3,2) -> 154.55
A4: 154.45645 | B4: =ROUNDDOWN(A4,2) -> 154.45
B6: automateexcel.com/functions/rounddown-formula-excel
B8: Excel Boot Camp - Learn Excel Inside Excel

Sheet Round 10-100-1000
A1: Number | B1: Nearest_10 | C1: Nearest_100 | D1: Nearest_1000
A2: 1234.56 | B2: =ROUNDDOWN(A2,-1) -> 1230 | C2: =ROUNDDOWN(A2,-2) -> 1200 | D2: =ROUNDDOWN(A2,-3) -> 1000 | F2: =ROUNDDOWN(A2,-2)
A3: 5555.55 | B3: =ROUNDDOWN(A3,-1) -> 5550 | C3: =ROUNDDOWN(A3,-2) -> 5500 | D3: =ROUNDDOWN(A3,-3) -> 5000
A4: 9876.54 | B4: =ROUNDDOWN(A4,-1) -> 9870 | C4: =ROUNDDOWN(A4,-2) -> 9800 | D4: =ROUNDDOWN(A4,-3) -> 9000
F5: =ROUNDDOWN(A2,-3)
B7: automateexcel.com/functions/rounddown-formula-excel
B9: Excel Boot Camp - Learn Excel Inside Excel

Sheet Round-RoundUP-RoundDown
A1: Number | B1: ROUND_100 | C1: ROUNDUP_100 | D1: ROUNDDOWN_100
A2: 1234 | B2: =ROUND(A2,-2) -> 1200 | C2: =ROUNDUP(A2,-2) -> 1300 | D2: =ROUNDDOWN(A2,-2) -> 1200 | F2: =ROUNDUP(A2,-2)
A3: 5555 | B3: 5600 | C3: =ROUNDUP(A3,-2) -> 5600 | D3: 5500
A4: 9876 | B4: 9900 | C4: 9900 | D4: 9800
F5: =ROUNDDOWN(A2,-2)
B7: automateexcel.com/functions/rounddown-formula-excel
B9: Excel Boot Camp - Learn Excel Inside Excel

Sheet ROUND Multiplies
A1: Number | B1: Result
A2: 1234 | B2: =ROUNDUP(A2,-3) -> 2000
A3: 2345 | B3: 3000
A4: 3456 | B4: 4000
A5: 4567 | B5: 5000
A6: 5678 | B6: 6000
A7: 6789 | B7: 7000
A8: 9500 | B8: 10000
B10: automateexcel.com/functions/rounddown-formula-excel
B12: Excel Boot Camp - Learn Excel Inside Excel

Sheet RoundDOWN Presentage
A1: Percentage | B1: Result
A2: 1 | B2: =ROUNDDOWN(A2,2) -> 1
A3: 0.8795 | B3: =ROUNDDOWN(A3,2) -> 0.87
A4: 0.6723 | B4: 0.67
A5: 0.1234 | B5: 0.12
A6: 0.0155 | B6: 0.01
B8: automateexcel.com/functions/rounddown-formula-excel
B10: Excel Boot Camp - Learn Excel Inside Excel

Sheet Other ROUND Function
B2: Round Formulas
B4: Number | C4: Answer | D4: FORMULA
B5: 5154.45 | C5: =ROUND(B5,0) -> 5154 | D5: =ROUND(B5,0)
B6: 5154.45 | C6: =ROUNDUP(B6,-4) -> 10000 | D6: =ROUNDUP(B6,-4)
B7: 5154.45 | C7: =ROUNDDOWN(B7,-3) -> 5000 | D7: =ROUNDUP(B7,-3)
B8: 5154.45 | C8: =TRUNC(B8,-3) -> 5000 | D8: =TRUNC(B8,-3)
B9: 5154.45 | C9: =INT(B9) -> 5154 | D9: =INT(B9)
B10: 5154.45 | C10: =FLOOR(B10,100) -> 5100 | D10: =FLOOR(B10,77)
B11: 5154.45 | C11: =CEILING(B11,100) -> 5200 | D11: =CEILING(B11,100)
B12: 5154.45 | C12: =MROUND(B12,100) -> 5200 | D12: =MROUND(B12,100)
B15: automateexcel.com/functions/rounddown-formula-excel
B17: Excel Boot Camp - Learn Excel Inside Excel

Sheet Rounddown-FLOOR
A1: Number | B1: Significance (multiple ) | C1: Answer
A2: 154.546 | B2: 0.01 | C2: =FLOOR(A2,B2) -> 154.54
A3: 154.546 | B3: 1 | C3: =FLOOR(A3,B3) -> 154
A4: 154.546 | B4: 5 | C4: 150
A5: 154.546 | B5: 10 | C5: 150
A6: 154.546 | B6: 100 | C6: 100
B8: automateexcel.com/functions/rounddown-formula-excel
B10: Excel Boot Camp - Learn Excel Inside Excel
